bitfinex/quotes_ETHUSD_20250725
["timestamp","ask_amount","ask_price","bid_price","bid_amount"]
[1753442701694,0.002,3742.4,3742.3,8.68027263]
[1753442703804,0.002,3742.4,3742.3,8.81387263]
[1753442704362,0.002,3742.4,3742.3,8.81391941]
[1753442704674,0.002,3742.4,3742.3,8.26391941]
[1753442704974,0.002,3742.4,3742.3,4.70791941]
[1753442705182,0.002,3742.4,3742.3,3.24811941]
[1753442705383,0.9293,3742.4,3742.3,7.35411941]
[1753442705702,0.002,3742.4,3742.3,7.81951941]
[1753442706001,0.002,3742.4,3742.3,3.24811941]
[1753442706182,0.002,3742.4,3742.3,7.35411941]
[1753442706368,0.002,3742.4,3742.3,3.24811941]
[1753442706570,0.9123,3742.4,3742.3,4.68296593]
[1753442706801,0.9123,3742.4,3742.3,7.35511941]
[1753442708110,0.9123,3742.4,3742.3,3.24811941]
[1753442708310,0.9123,3742.4,3742.3,7.35511941]
[1753442708507,1.6973,3742.4,3742.3,0.57596593]
[1753442708694,1.6973,3742.4,3742.3,4.68196593]
[1753442709205,1.6973,3742.4,3742.3,0.57596593]
[1753442709406,1.6973,3742.4,3742.3,7.35411941]
[1753442709583,1.6973,3742.4,3742.3,4.43509563]
[1753442710214,1.6973,3742.4,3742.3,0.32909563]
[1753442710511,1.6973,3742.4,3742.3,4.43509563]
[1753442710909,1.6973,3742.4,3742.3,7.10724911]
[1753442711107,0.787,3742.4,3742.3,7.10724911]
[1753442711283,0.002,3742.4,3742.3,7.10724911]
[1753442711488,0.002,3742.4,3742.3,7.56904911]
[1753442711885,0.002,3742.4,3742.3,7.10724911]
[1753442712987,0.002,3742.4,3742.3,7.56904911]
[1753442713212,0.002,3742.4,3742.3,7.10724911]
[1753442713685,0.002,3742.4,3742.3,7.56904911]
[1753442713885,0.002,3742.4,3742.3,7.10724911]
[1753442714187,0.4766,3742.4,3742.3,0.32909563]
[1753442714387,0.9123,3742.4,3742.3,0.32909563]
[1753442714610,0.7949,3742.4,3742.3,7.10724911]
[1753442714788,0.002,3742.4,3742.3,7.10724911]
[1753442714996,0.4766,3742.4,3742.3,7.10724911]
[1753442716115,0.9123,3742.4,3742.3,4.43509563]
[1753442716336,0.9123,3742.4,3742.3,7.10724911]
[1753442716517,0.9123,3742.4,3742.3,3.00124911]
[1753442716810,0.9123,3742.4,3742.3,4.43509563]
[1753442717293,0.9123,3742.4,3742.3,4.2396]
[1753442717778,1.731,3742.4,3742.3,4.2396]
[1753442717979,4.40308208,3742.4,3742.3,4.2396]
[1753442718182,4.40308208,3742.4,3742.3,0.1336]
[1753442718400,4.40308208,3742.4,3741.6,6.414]
[1753442718401,2.67237386,3742.0,3741.6,6.414]
[1753442718609,0.9103,3741.9,3741.7,4.106]
[1753442718835,2.67228656,3742.2,3741.9,0.1336]
[1753442718981,2.67228656,3742.2,3742.0,4.106]
[1753442719178,2.67228656,3742.2,3742.0,4.2396]
[1753442719384,1.7156,3742.1,3741.6,6.414]
[1753442719618,0.9103,3742.0,3741.8,0.1336]
[1753442720119,0.9103,3742.0,3741.9,4.106]
[1753442720120,2.67236771,3742.0,3741.9,4.106]
[1753442720321,0.8053,3741.7,3740.8,2.67321747]
[1753442720521,3.47795039,3741.7,3741.3,0.1336]
[1753442720709,0.9103,3741.6,3741.3,0.1336]
[1753442720908,3.47579627,3741.4,3741.3,0.1336]
[1753442721299,2.6730051,3741.2,3740.4,9.61265508]
[1753442721620,0.9103,3741.1,3740.9,0.1336]
[1753442721793,0.9103,3741.1,3741.0,4.107]
[1753442722121,0.4357,3741.1,3741.0,4.107]
[1753442722294,0.4746,3741.3,3741.0,4.107]
[1753442722622,0.9103,3741.3,3741.1,4.2406]
[1753442722818,2.67288202,3741.3,3741.1,4.2406]
[1753442722988,3.58323916,3741.2,3741.1,0.1336]
[1753442723195,3.44291061,3741.1,3741.0,0.8]
[1753442723394,4.48681061,3741.1,3741.0,4.107]
[1753442723834,2.67308206,3741.0,3740.5,0.1336]
[1753442724019,2.67324934,3740.8,3740.5,0.1336]
[1753442724220,0.9103,3740.9,3740.6,4.108]
[1753442724427,3.58358378,3740.8,3740.6,4.108]
[1753442724741,0.7723,3740.6,3740.5,0.1336]
[1753442724941,0.7723,3740.6,3740.5,4.2416]
[1753442725099,4.3559679,3740.6,3740.5,4.107]
[1753442726028,3.44595381,3740.2,3740.1,0.001]
[1753442726367,6.57955381,3740.2,3740.1,0.001]
[1753442726692,7.48985381,3740.2,3740.1,0.001]
[1753442727318,7.48985381,3740.2,3740.1,1e-08]
[1753442730942,0.7975,3740.8,3740.3,2.67357086]
[1753442731091,3.47074916,3740.8,3740.4,4.5738]
[1753442731296,3.47074916,3740.8,3740.5,0.1336]
[1753442731519,0.7975,3740.8,3740.5,0.1336]
[1753442733239,3.47075271,3740.8,3740.5,0.1336]
[1753442733450,2.67331061,3740.7,3740.5,0.1336]
[1753442733750,0.7975,3740.8,3740.5,0.1336]
[1753442733751,1.7078,3740.8,3740.5,0.1336]
[1753442734326,1.7078,3740.8,3740.5,0.5954]
[1753442734327,0.7975,3740.8,3740.5,0.5954]
[1753442734527,0.7975,3740.8,3740.6,0.4618]
[1753442734728,0.801,3741.1,3740.7,1.0526]
[1753442734951,0.801,3741.1,3740.8,0.4618]
[1753442735168,0.801,3741.1,3740.9,4.2446]
[1753442736043,2.67295221,3741.2,3740.9,4.2446]
[1753442736449,2.67308206,3741.0,3740.9,0.1336]
[1753442736644,3.45931147,3741.1,3740.6,0.4735]
[1753442736849,4.35381147,3741.1,3740.9,4.11]
[1753442737156,3.56758206,3741.0,3740.9,4.11]
[1753442737361,3.56758206,3741.0,3740.9,4.119]
[1753442737556,0.8945,3741.0,3740.9,4.119]
[1753442737860,0.4601,3741.0,3740.5,0.1336]
[1753442738063,0.4601,3741.0,3740.1,1e-08]
[1753442738064,2.67329644,3740.7,3740.6,4.119]
[1753442738263,2.67252302,3741.8,3740.6,5.0383]
[1753442738440,0.7512,3741.5,3741.0,2.67301646]
[1753442738645,0.7512,3741.5,3741.1,4.12]
[1753442738839,0.8945,3741.8,3741.2,0.4735]
[1753442739051,1.2249,3741.8,3741.3,2.67282196]
[1753442739253,0.7648,3741.8,3741.4,0.9193]
[1753442739539,0.4621,3742.4,3741.1,4.12]
[1753442739540,0.7648,3742.2,3741.7,2.67253129]
[1753442739745,0.7648,3742.2,3741.5,4.3832099]
[1753442739746,0.002,3742.4,3741.8,4.5945]
[1753442739947,0.002,3742.4,3741.9,2.67239584]
[1753442740147,0.002,3742.4,3742.0,2.67235841]
[1753442740461,0.002,3742.4,3741.8,7.71279254]
[1753442740666,0.002,3742.4,3741.8,5.0403]
[1753442740863,2.6722009,3742.3,3741.8,5.0403]
[1753442741037,2.672258,3742.2,3741.8,5.0403]
[1753442741243,2.672258,3742.2,3741.8,4.5945]
[1753442741541,3.4621,3742.4,3741.8,4.121]
[1753442741741,3.13420515,3742.4,3741.8,4.121]
[1753442741941,2.67215482,3742.3,3741.9,4.121]
[1753442742172,3.134209,3742.4,3741.9,4.121]
[1753442742590,3.134209,3742.4,3742.0,0.4735]
[1753442742591,0.002,3742.4,3742.0,0.4735]
[1753442742875,0.002,3742.4,3742.1,0.4735]
[1753442743947,0.002,3742.4,3741.9,4.121]
[1753442744144,2.67234861,3742.1,3742.0,4.12]
[1753442744367,0.8945,3742.1,3742.0,4.12]
[1753442744589,2.67176112,3742.9,3742.0,4.12]
[1753442744590,0.8021,3743.9,3742.1,0.7776]
[1753442744751,0.8945,3743.8,3742.2,5.0593]
[1753442744946,0.8945,3743.8,3742.3,3.59142136]
[1753442745146,3.56558919,3743.8,3742.4,0.9193]
[1753442745347,3.56558919,3743.8,3742.8,2.67179084]
[1753442745689,2.67128596,3743.6,3742.9,4.139]
[1753442745853,2.67137328,3743.4,3742.9,4.139]
[1753442746178,2.67144809,3743.3,3743.0,0.4735]
[1753442746485,2.67165835,3743.0,3742.2,0.4458]
[1753442746680,0.7759,3743.1,3742.3,0.4735]
[1753442746872,2.67186628,3742.8,3742.4,4.138]
[1753442747174,2.67201068,3742.5,3742.1,0.7776]
[1753442747374,2.67201068,3742.5,3742.2,4.6135]
[1753442747675,2.67202202,3742.5,3742.3,0.4735]
[1753442747878,2.67202202,3742.5,3742.3,4.6135]
[1753442748076,2.67208208,3742.4,3742.3,4.6135]
[1753442748281,2.67202708,3742.5,3742.4,0.1336]
[1753442748647,2.67202708,3742.5,3742.4,4.2726]
[1753442749748,0.7743,3742.4,3741.6,6.416]
[1753442749944,2.67236771,3742.0,3741.7,4.143]
[1753442750188,2.67236771,3742.0,3741.9,0.1336]
[1753442750591,0.7743,3742.4,3741.9,0.6071]
[1753442750808,2.80552778,3742.7,3742.0,0.9193]
[1753442751110,0.8254,3743.1,3742.2,0.818]
[1753442751290,0.7865,3743.4,3742.6,0.1336]
[1753442751477,0.7865,3743.4,3742.2,0.818]
[1753442751478,2.67141255,3743.4,3743.0,0.1336]
[1753442751684,2.67141255,3743.4,3743.1,4.6185]
[1753442752405,0.1336,3743.6,3743.1,4.6185]
[1753442752577,3.45766707,3743.7,3743.3,0.1336]
[1753442752903,2.67136827,3743.4,3743.3,0.1336]
[1753442753272,2.67167211,3743.0,3742.3,0.9193]
[1753442753472,0.4601,3743.1,3742.4,4.144]
[1753442753668,2.67172513,3742.9,3742.8,0.1336]
[1753442753919,3.13182513,3742.9,3742.8,4.2786]
[1753442754389,3.56622513,3742.9,3742.8,4.144]
[1753442754703,3.56622513,3742.9,3742.0,3.59164527]
[1753442754704,0.8945,3742.9,3742.0,0.9193]
[1753442754918,0.4601,3742.8,3742.4,0.1336]
[1753442755078,0.1336,3743.0,3742.4,0.1336]
[1753442755079,2.6718722,3742.7,3742.4,0.1336]
[1753442755493,2.6718722,3742.7,3742.5,4.145]
[1753442755671,2.67193929,3742.6,3742.5,4.145]
[1753442755877,3.13203929,3742.6,3742.5,4.145]
[1753442756213,2.67233931,3742.1,3741.7,0.67105571]
[1753442756382,2.67233931,3742.1,3741.9,0.1336]
[1753442757082,2.67236771,3742.0,3741.9,0.1336]
[1753442757277,2.67232321,3742.1,3741.9,0.1336]
[1753442757511,2.67215348,3742.3,3741.9,0.1336]
[1753442757675,0.1336,3742.4,3741.9,0.6071]
[1753442757875,2.67215348,3742.3,3742.0,4.145]
[1753442758080,0.1336,3742.4,3741.9,0.1336]
[1753442758280,2.67236771,3742.0,3741.9,0.1336]
[1753442758480,0.4601,3742.2,3741.6,6.416]
[1753442758676,2.6721612,3742.3,3741.9,4.143]
[1753442758908,2.67208623,3742.4,3742.1,0.1336]
[1753442759110,2.67203844,3742.5,3742.1,0.6071]
[1753442759999,2.6719963,3742.6,3742.2,0.4735]
[1753442760194,2.6719963,3742.6,3742.3,4.144]
[1753442761017,2.6720136,3742.5,3742.3,4.144]
[1753442761216,0.1336,3742.7,3742.3,4.144]
[1753442761392,0.7683,3742.8,3742.1,0.4458]
[1753442761595,2.67207922,3742.5,3742.4,0.1336]
[1753442761897,3.1319679,3742.7,3742.4,0.1336]
[1753442761898,2.67196615,3742.6,3742.4,0.1336]
[1753442762417,3.1319941,3742.7,3742.4,0.1336]
[1753442762596,3.1319941,3742.7,3742.5,4.141]
[1753442762786,2.67193929,3742.6,3742.5,4.141]
[1753442763183,2.67201068,3742.5,3742.4,0.1336]
[1753442763383,2.67201068,3742.5,3741.9,0.4735]
[1753442763384,2.67208637,3742.4,3742.2,0.1336]
[1753442763592,3.13218637,3742.4,3742.3,4.14]
[1753442763792,3.56658637,3742.4,3742.3,4.14]
[1753442764222,3.56658637,3742.4,3742.2,0.1336]
[1753442764223,3.56658799,3742.4,3742.2,0.1336]
[1753442764399,0.8945,3742.4,3742.3,4.141]
[1753442764598,3.56658208,3742.4,3742.3,4.141]
[1753442764795,0.4601,3742.4,3742.2,0.1336]
[1753442764995,2.67202756,3742.5,3742.3,4.14]
[1753442765198,2.67215348,3742.3,3741.2,3.0]
[1753442765401,2.67215348,3742.3,3741.9,0.1336]
[1753442766222,0.8945,3742.4,3741.9,0.1336]
[1753442766593,3.56660387,3742.4,3741.9,0.1336]
[1753442766886,3.56660203,3742.4,3741.9,0.6203]
[1753442767519,0.8945,3742.4,3741.9,0.6203]
[1753442767818,2.6718679,3742.7,3742.0,0.9249]
[1753442768020,2.8054679,3742.7,3742.2,0.1336]
[1753442768225,3.2689679,3742.7,3742.2,0.1336]
[1753442768410,3.44012993,3742.8,3742.3,0.4867]
[1753442768592,0.9019,3742.8,3742.3,0.4867]
[1753442769022,0.446,3742.9,3742.4,0.4867]
[1753442769328,3.7148351,3742.9,3742.5,4.137]
[1753442769645,2.67179943,3742.8,3742.5,4.137]
[1753442769997,3.71484537,3742.9,3742.5,4.137]
[1753442770500,1.0431,3742.9,3742.5,4.137]
[1753442771029,3.58133821,3742.8,3742.2,1.3497]
[1753442771195,0.9095,3742.8,3742.3,4.136]
[1753442771390,3.58134498,3742.8,3742.4,4.135]
[1753442771593,0.9095,3742.8,3742.4,4.135]
[1753442771789,3.5813201,3742.8,3742.4,4.135]
[1753442772096,2.67186797,3742.7,3742.3,0.4867]
[1753442772314,2.67186797,3742.7,3742.4,4.135]
[1753442773414,2.67181424,3742.8,3742.4,4.135]
[1753442773825,1.2925,3743.1,3742.5,0.4867]
[1753442774013,0.1336,3743.0,3742.4,4.7068]
[1753442774211,2.67170246,3743.0,3742.6,0.1336]
[1753442774612,2.67170246,3743.0,3742.7,0.4867]
[1753442774926,0.9626,3743.1,3742.8,4.132]
[1753442775094,0.1336,3743.1,3742.8,4.132]
[1753442775296,3.0,3743.2,3742.8,4.7523]
[1753442775729,3.0,3743.2,3742.9,0.4867]
[1753442775930,2.67151526,3743.2,3742.9,0.4867]
[1753442776100,2.67151526,3743.2,3742.8,4.2656]
[1753442776299,3.93207188,3743.4,3742.8,4.7523]
[1753442776502,2.67163879,3743.1,3742.8,4.2656]
[1753442776830,3.58115375,3743.0,3742.9,4.13]
[1753442777018,2.67177087,3742.9,3742.6,0.1336]
[1753442777335,0.9095,3742.9,3742.7,4.13]
[1753442777501,0.4635,3743.1,3742.7,4.13]
[1753442777701,2.67165494,3743.0,3742.7,4.13]
[1753442778536,3.58124333,3742.9,3742.7,4.13]
[1753442778704,3.11774333,3742.9,3742.7,4.13]
[1753442779032,0.4635,3742.8,3742.6,0.1336]
[1753442779339,0.4635,3742.8,3742.7,4.128]
[1753442779340,0.9095,3742.8,3742.7,4.128]
[1753442779633,3.58133932,3742.8,3742.7,4.128]
[1753442779798,3.0,3742.7,3742.1,0.001]
[1753442779999,2.67222489,3742.2,3742.1,0.001]
[1753442780541,3.58172489,3742.2,3742.1,0.001]
[1753442781355,4.37992489,3742.2,3742.1,0.001]
[1753442783138,4.37992489,3742.2,3742.1,0.2486813]
[1753442783631,7.37992489,3742.2,3742.1,0.2486813]
[1753442784946,6.47042489,3742.2,3742.1,0.2486813]
[1753442785256,2.67222489,3742.2,3742.1,0.2486813]
[1753442786251,6.94332238,3742.5,3742.1,0.7353813]
[1753442786252,2.6720372,3742.5,3742.1,0.7353813]
[1753442786485,2.6720372,3742.5,3742.2,0.7343813]
[1753442786662,2.6720372,3742.5,3742.3,0.2476813]
[1753442786859,6.79993806,3742.7,3742.2,0.4867]
[1753442786860,3.0,3742.7,3742.4,0.2476813]
[1753442787014,3.0,3742.7,3742.5,0.2476813]
[1753442787354,5.6718679,3742.7,3742.6,0.24748235]
[1753442787930,2.67177628,3742.9,3742.6,0.73418235]
[1753442788124,2.67177628,3742.9,3742.7,0.24748235]
[1753442788329,2.67167516,3743.0,3742.8,0.24748235]
[1753442788529,2.67167516,3743.0,3742.9,0.24748235]
[1753442789444,3.13517516,3743.0,3742.9,0.24748235]
[1753442789641,3.58117516,3743.0,3742.9,0.24748235]
[1753442789844,0.1336,3743.0,3742.9,0.24748235]
[1753442790023,2.67143963,3743.3,3742.9,0.73418235]
[1753442790219,2.80503963,3743.3,3743.0,0.24748235]
[1753442790555,0.1336,3743.3,3743.1,0.24748235]
[1753442790758,0.1336,3743.3,3742.9,0.4867]
[1753442790924,2.80506079,3743.3,3743.0,0.24736535]
[1753442792864,2.80506079,3743.3,3743.2,0.24736535]
[1753442793466,3.71456079,3743.3,3743.2,0.24736535]
[1753442793969,8.07996079,3743.3,3743.2,0.24736535]
[1753442795215,2.67221197,3742.3,3742.1,0.001]
[1753442795458,2.67221197,3742.3,3742.2,0.24737335]
[1753442795862,2.67222489,3742.2,3742.1,0.001]
[1753442796017,2.67222489,3742.2,3742.1,0.24837854]
[1753442797731,4.41392489,3742.2,3742.1,0.24837854]
[1753442798117,8.53892489,3742.2,3742.1,0.24837854]
[1753442798320,3.48802489,3742.2,3742.1,0.24837854]
[1753442798550,2.67222489,3742.2,3742.1,0.24837854]
[1753442798752,2.67208208,3742.4,3742.1,0.72387854]
[1753442798976,2.6720246,3742.5,3742.2,1.18857854]
[1753442799123,2.67194056,3742.6,3742.3,1.18857854]
[1753442799323,4.9408,3742.8,3742.4,1.18857854]
[1753442799543,2.67184851,3742.8,3742.5,0.72287854]
[1753442799852,0.8263,3743.5,3742.7,0.7984]
[1753442800059,2.6712931,3743.6,3742.8,1.18857854]
[1753442800226,2.6713073,3743.5,3742.9,1.18857854]
[1753442800427,2.6713073,3743.5,3743.0,0.24737854]
[1753442800626,2.6713073,3743.5,3743.1,1.18857854]
[1753442800953,4.126,3743.6,3743.2,1.18857854]
[1753442801158,2.67130847,3743.5,3743.3,0.24737854]
[1753442801355,2.67115643,3743.7,3743.4,0.24737854]
[1753442801658,2.6711542,3743.7,3743.5,0.24737854]
[1753442801830,2.6711542,3743.7,3743.6,0.24737854]
[1753442802750,2.6711542,3743.7,3743.4,1.3065]
[1753442802938,2.6711542,3743.7,3743.4,0.831]
[1753442803275,2.67117247,3743.7,3743.2,0.9412]
[1753442803450,2.67117247,3743.7,3743.2,0.4657]
[1753442803624,2.67117247,3743.7,3743.1,3.48297451]
[1753442803625,2.67117247,3743.7,3743.3,0.4755]
[1753442803966,2.67117247,3743.7,3743.4,0.4755]
[1753442804130,2.67117247,3743.7,3743.3,0.4657]
[1753442804333,2.67117247,3743.7,3743.5,0.4755]
[1753442804961,0.002,3743.8,3743.5,0.4755]
[1753442805161,2.67119425,3743.7,3743.5,0.4755]
[1753442805362,2.67122555,3743.6,3743.5,0.4755]
[1753442805759,2.67117789,3743.7,3743.3,0.4657]
[1753442805946,2.67117789,3743.7,3743.4,0.9412]
[1753442806263,2.67122676,3743.6,3743.4,0.4755]
[1753442806971,2.67118219,3743.7,3743.5,0.4755]
[1753442807269,3.002,3743.8,3743.5,0.4755]
[1753442807435,2.67122555,3743.6,3743.5,0.4755]
[1753442807835,0.002,3743.8,3743.1,1.2771]
[1753442807836,0.002,3743.8,3743.2,0.1336]
[1753442808153,0.002,3743.8,3743.6,0.4755]
[1753442808154,2.80668612,3743.8,3743.6,0.4755]
[1753442808467,2.80668612,3743.8,3743.3,0.4657]
[1753442808468,2.80668612,3743.8,3743.4,0.4755]
[1753442808669,0.1356,3743.8,3743.2,0.1336]
[1753442808968,0.002,3743.8,3743.5,0.4755]
[1753442809174,0.002,3743.8,3743.4,0.4657]
[1753442809175,0.002,3743.8,3743.6,0.4755]
[1753442809353,0.002,3743.8,3743.4,0.1336]
[1753442809559,0.002,3743.8,3743.5,0.4755]
[1753442809761,2.6730956,3743.8,3743.5,0.4755]
[1753442810176,0.002,3743.8,3743.5,0.4755]
[1753442810682,2.67310149,3743.8,3743.6,0.4755]
[1753442810853,2.6711542,3743.7,3743.4,1.0748]
[1753442811054,0.002,3743.8,3743.5,0.4755]
[1753442811266,0.002,3743.8,3743.5,0.9412]
[1753442811484,0.002,3743.8,3743.5,0.4755]
[1753442811673,0.002,3743.8,3743.6,0.4657]
[1753442811862,0.002,3743.8,3743.6,0.9412]
[1753442812064,0.002,3743.8,3743.7,0.4755]
[1753442812266,0.002,3743.8,3743.7,1.2312]
[1753442812469,0.002,3743.8,3743.7,1.6969]
[1753442812672,0.002,3743.8,3743.7,0.7557]
[1753442812851,0.002,3743.8,3743.7,1.2312]
[1753442813473,0.002,3743.8,3743.7,3.9023542]
[1753442813675,0.002,3743.8,3743.7,4.5016542]
[1753442814241,0.002,3743.8,3743.7,5.21894931]
[1753442814474,0.002,3743.8,3743.7,5.4654226]
[1753442815270,0.002,3743.8,3743.7,9.5814226]
[1753442815854,0.002,3743.8,3743.7,7.92292749]
[1753442816053,0.002,3743.8,3743.7,8.86412749]
[1753442819684,0.002,3743.8,3743.7,1.13577329]
[1753442819855,0.002,3743.8,3743.7,5.24877329]
[1753442821059,0.002,3743.8,3743.7,0.38007329]
[1753442821294,0.002,3743.8,3743.7,4.49107329]
[1753442822063,0.002,3743.8,3743.7,0.38007329]
[1753442822262,3.59898285,3743.8,3743.7,0.24647329]
[1753442822468,4.38598285,3743.8,3743.7,0.24647329]
[1753442823150,4.51958285,3743.8,3743.7,4.35747329]
[1753442823347,4.51958285,3743.8,3743.7,0.24647329]
[1753442823950,0.002,3743.8,3743.7,0.24647329]
[1753442824154,0.002,3743.8,3743.7,0.72197329]
[1753442824355,0.002,3743.8,3743.7,1.18767329]
[1753442824554,0.002,3743.8,3743.7,0.72197329]
[1753442824988,0.002,3743.8,3743.7,0.24647329]
[1753442825907,3.59898285,3743.8,3743.7,4.35947329]
[1753442826055,4.38598285,3743.8,3743.7,0.24647329]
[1753442826477,4.93598285,3743.8,3743.7,0.24647329]
[1753442826678,4.38598285,3743.8,3743.7,0.24647329]
[1753442826883,2.67308285,3743.8,3743.7,0.24647329]
[1753442827087,0.002,3743.8,3743.7,0.24647329]
[1753442827282,0.002,3743.8,3743.7,4.85667329]
[1753442827582,0.002,3743.8,3743.7,5.29337329]
[1753442827773,0.002,3743.8,3743.7,4.85667329]
[1753442828554,0.002,3743.8,3743.7,5.29337329]
[1753442828755,0.002,3743.8,3743.7,7.96452749]
[1753442829288,0.002,3743.8,3743.7,8.71862749]
[1753442829587,0.002,3743.8,3743.7,0.24647329]
[1753442829789,0.002,3743.8,3743.7,4.85567329]
[1753442830160,0.002,3743.8,3743.7,4.6092]
[1753442830790,0.002,3743.8,3743.6,0.1336]
[1753442830964,2.6730909,3743.8,3743.7,4.36095426]
[1753442831169,2.67120338,3743.7,3743.4,0.1336]
[1753442831367,2.67122555,3743.6,3743.5,4.114]
[1753442831976,3.12220113,3743.7,3743.5,4.36102815]
[1753442832594,2.67122555,3743.6,3743.5,4.114]
[1753442832810,0.002,3743.8,3743.5,4.114]
[1753442832995,0.002,3743.8,3743.6,0.74220019]
[1753442833199,2.67308915,3743.8,3743.6,0.24700019]
[1753442833498,2.67308915,3743.8,3743.5,4.114]
[1753442833499,2.67119683,3743.7,3743.5,4.114]
[1753442833694,0.002,3743.8,3743.6,0.24704999]
[1753442833996,3.1378542,3743.7,3743.6,0.24704999]
[1753442834300,3.5888542,3743.7,3743.6,0.24704999]
[1753442834470,2.6711542,3743.7,3743.5,4.114]
[1753442834664,2.67122555,3743.6,3743.5,4.114]
[1753442834876,3.12222555,3743.6,3743.5,4.114]
[1753442835205,2.67136827,3743.4,3742.8,1.2704]
[1753442835374,2.671511,3743.2,3743.1,0.1336]
[1753442835578,2.67156951,3743.2,3743.1,0.24722411]
[1753442835775,3.58926951,3743.2,3743.1,0.24722411]
[1753442835985,2.67156951,3743.2,3743.1,0.24722411]
[1753442836403,3.58926951,3743.2,3743.1,0.24722411]
[1753442837413,7.34986951,3743.2,3743.1,0.24722411]
[1753442837879,7.34986951,3743.2,3742.4,0.001]
[1753442837880,2.67161355,3743.1,3742.4,0.001]
[1753442838083,2.6718679,3742.7,3742.6,4.113]
[1753442838282,2.6718679,3742.7,3742.6,4.36012878]
[1753442838478,3.5895679,3742.7,3742.6,4.36012878]
[1753442838912,3.5895679,3742.7,3742.6,0.24712878]
[1753442839485,4.8951679,3742.7,3742.6,0.24712878]
[1753442840510,4.1395679,3742.7,3742.6,0.24712878]
[1753442840707,4.1395679,3742.7,3742.4,0.001]
[1753442840892,0.832,3743.3,3742.4,0.001]
[1753442841091,0.832,3743.3,3742.5,0.24684556]
[1753442841092,2.67193929,3742.6,3742.5,0.24684556]
[1753442841793,2.67188075,3742.7,3742.5,0.74204556]
[1753442842115,2.67188075,3742.7,3742.4,0.001]
[1753442842116,2.6718679,3742.7,3742.6,0.24684556]
[1753442842491,2.67182263,3742.8,3742.6,0.24684556]
[1753442842817,2.67182263,3742.8,3742.7,0.24684556]
[1753442843318,3.12282263,3742.8,3742.7,0.24684556]
[1753442843709,2.67175157,3742.9,3742.7,0.24684556]
[1753442843912,2.67178803,3742.9,3742.8,0.24684556]
[1753442844504,2.67180343,3742.8,3742.4,0.001]
[1753442844700,2.67180343,3742.8,3742.5,0.7418301]
[1753442844903,2.67180343,3742.8,3742.4,0.4377]
[1753442844904,0.832,3743.3,3742.6,0.7418301]
[1753442845108,2.67136998,3743.4,3742.7,1.9637301]
[1753442845304,2.67150845,3743.3,3742.8,0.7418301]
[1753442845508,2.67150845,3743.3,3742.9,0.7418301]
[1753442845703,0.7909,3743.6,3743.0,0.2466301]
[1753442845904,0.7909,3743.6,3742.9,0.4952]
[1753442845905,1.2576,3743.6,3743.1,0.2466301]
[1753442846111,1.2576,3743.6,3742.7,4.119]
[1753442846112,3.9177,3743.5,3742.7,4.119]
[1753442846436,2.67171393,3743.0,3742.8,0.24656212]
[1753442846605,2.67171393,3743.0,3742.9,0.24656212]
[1753442846804,3.13841393,3743.0,3742.9,0.24656212]
[1753442847407,2.67159928,3743.1,3742.9,0.24656212]
[1753442847605,2.67144924,3743.3,3743.0,0.68326212]
[1753442847832,0.7909,3743.6,3743.1,5.30046212]
[1753442847833,2.67143232,3743.4,3743.1,5.30046212]
[1753442848039,2.67130276,3743.5,3743.2,0.24656212]
[1753442848341,2.67130276,3743.5,3743.3,0.24656212]
[1753442848514,2.67130276,3743.5,3743.4,0.24656212]
[1753442848719,3.58900276,3743.5,3743.4,0.24656212]
[1753442849122,2.67130276,3743.5,3743.4,0.24656212]
[1753442849320,2.80482915,3743.6,3743.4,0.24656212]
[1753442849522,2.80482915,3743.6,3743.5,0.24656212]
[1753442849738,0.1336,3743.6,3743.5,0.24673483]
[1753442850037,0.002,3743.8,3743.5,0.24673483]
[1753442850038,0.002,3743.8,3743.5,1.17863483]
[1753442850235,0.002,3743.8,3743.6,4.36873483]
[1753442850408,0.002,3743.8,3743.7,0.24673483]
[1753442850608,0.002,3743.8,3743.7,0.74193483]
[1753442851406,2.67308285,3743.8,3743.7,0.74193483]
[1753442851606,2.67308285,3743.8,3743.7,0.24673483]
[1753442852437,2.67308285,3743.8,3743.7,4.36873483]
[1753442853139,2.67308285,3743.8,3743.7,0.24673483]
[1753442853338,3.72438285,3743.8,3743.7,0.24673483]
[1753442854942,2.80668285,3743.8,3743.7,0.24673483]
[1753442855246,4.27438285,3743.8,3743.7,0.24673483]
[1753442856014,8.03798285,3743.8,3743.7,0.24673483]
[1753442856325,12.15798285,3743.8,3743.7,0.24673483]
[1753442857036,12.15798285,3743.8,3742.5,0.1336]
[1753442857037,2.67193929,3742.6,3742.5,0.1336]
[1753442857349,0.7916,3743.0,3742.4,0.001]
[1753442857544,2.67201068,3742.5,3742.4,0.001]
[1753442857746,2.67122555,3743.6,3742.5,0.4866]
[1753442857747,0.1336,3742.7,3742.5,0.4866]
[1753442857933,0.1336,3743.4,3742.6,0.7937]
[1753442858120,0.1336,3743.4,3742.7,5.0551]
[1753442858316,1.2558,3743.9,3742.8,3.74043003]
[1753442858645,0.1336,3743.5,3742.8,1.0687]
[1753442858850,0.4607,3744.1,3742.8,1.0687]
[1753442858851,0.1336,3743.7,3743.2,2.80508837]
[1753442859053,3.93092529,3744.2,3743.5,2.67128497]
[1753442859242,0.1336,3744.0,3743.6,4.124]
[1753442859627,0.1336,3744.0,3743.6,6.79520564]
[1753442859930,0.1336,3744.0,3743.7,0.9351]
[1753442861747,0.66623532,3744.3,3743.7,3.7398542]
[1753442864119,0.66623532,3744.3,3743.7,7.8628542]
[1753442865051,0.66623532,3744.3,3743.7,8.99687549]
[1753442865251,0.66623532,3744.3,3743.7,9.77927549]
[1753442867230,0.5943,3745.0,3743.7,9.77927549]
[1753442867435,3.26453659,3745.0,3743.7,9.77927549]
[1753442867776,3.13450364,3744.9,3743.7,9.77927549]
[1753442867921,3.13450364,3744.9,3743.7,5.65627549]